[Event "Titled Tuesday Blitz May 2 Early 2023"]
[White "Bilan, Danila"]
[Black "Arnold, Ken"]
[WhiteFideId "24161918"]
[BlackFideId "2056836"]
[WhiteElo "2182"]
[BlackElo "2355"]
[Result "1-0"]
[Round "03"]
[TimeControl "180+2"]
[Date "2023.05.02"]
[WhiteClock "0:00:06"]
[BlackClock "0:00:06"]

1. d4 {[%clk 0:03:00]}  Nf6 {[%clk 0:02:58]} 2. Nf3 {[%clk 0:03:01]}  e6 {[%clk 0:02:59]} 3. g3 {[%clk 0:03:01]}  b6 {[%clk 0:02:59]} 4. Bg2 {[%clk 0:03:01]}  Bb7 {[%clk 0:02:59]} 5. O-O {[%clk 0:03:01]}  Be7 {[%clk 0:02:59]} 6. c4 {[%clk 0:03:01]}  O-O {[%clk 0:02:59]} 7. d5 {[%clk 0:03:02]}  exd5 {[%clk 0:02:59]} 8. Nh4 {[%clk 0:03:02]}  Ne4 {[%clk 0:02:49]} 9. cxd5 {[%clk 0:03:01]}  Bxh4 {[%clk 0:02:47]} 10. Bxe4 {[%clk 0:03:02]}  Bf6 {[%clk 0:02:45]} 11. Nc3 {[%clk 0:02:59]}  d6 {[%clk 0:02:44]} 12. Qc2 {[%clk 0:02:53]}  g6 {[%clk 0:02:43]} 13. Bh6 {[%clk 0:02:53]}  Re8 {[%clk 0:02:43]} 14. Rfe1 {[%clk 0:02:45]}  Nd7 {[%clk 0:02:42]} 15. Bg2 {[%clk 0:02:36]}  a5 {[%clk 0:02:36]} 16. Rad1 {[%clk 0:01:49]}  Nc5 {[%clk 0:02:35]} 17. Nb5 {[%clk 0:01:46]}  Ba6 {[%clk 0:02:28]} 18. Nd4 {[%clk 0:01:41]}  Bg5 {[%clk 0:02:05]} 19. Bxg5 {[%clk 0:01:17]}  Qxg5 {[%clk 0:02:04]} 20. f4 {[%clk 0:01:15]}  Qf6 {[%clk 0:01:53]} 21. e4 {[%clk 0:01:13]}  Bb7 {[%clk 0:01:10]} 22. b3 {[%clk 0:00:58]}  Re7 {[%clk 0:01:08]} 23. a3 {[%clk 0:00:45]}  Rae8 {[%clk 0:01:01]} 24. b4 {[%clk 0:00:45]}  axb4 {[%clk 0:00:55]} 25. axb4 {[%clk 0:00:46]}  Na6 {[%clk 0:00:38]} 26. Qc4 {[%clk 0:00:41]}  h5 {[%clk 0:00:31]} 27. h4 {[%clk 0:00:35]}  Kg7 {[%clk 0:00:31]} 28. Ra1 {[%clk 0:00:24]}  Nb8 {[%clk 0:00:28]} 29. Ra7 {[%clk 0:00:21]}  Ba6 {[%clk 0:00:25]} 30. b5 {[%clk 0:00:17]}  Bc8 {[%clk 0:00:23]} 31. Nf3 {[%clk 0:00:11]}  Bf5 {[%clk 0:00:19]} 32. Ng5 {[%clk 0:00:08]}  Nd7 {[%clk 0:00:18]} 33. Rxc7 {[%clk 0:00:07]}  Nc5 {[%clk 0:00:18]} 34. Rxe7 {[%clk 0:00:06]}  Qxe7 {[%clk 0:00:18]} 35. Ra1 {[%clk 0:00:04]}  Bxe4 {[%clk 0:00:18]} 36. Nxe4 {[%clk 0:00:03]}  Nxe4 {[%clk 0:00:18]} 37. Re1 {[%clk 0:00:03]}  f5 {[%clk 0:00:18]} 38. Qd4+ {[%clk 0:00:03]}  Qf6 {[%clk 0:00:18]} 39. Qxb6 {[%clk 0:00:03]}  Re7 {[%clk 0:00:16]} 40. Bxe4 {[%clk 0:00:02]}  fxe4 {[%clk 0:00:15]} 41. Qe3 {[%clk 0:00:02]}  Qf5 {[%clk 0:00:15]} 42. b6 {[%clk 0:00:03]}  Rb7 {[%clk 0:00:14]} 43. Rb1 {[%clk 0:00:03]}  Kf7 {[%clk 0:00:14]} 44. Qc3 {[%clk 0:00:04]}  Qxd5 {[%clk 0:00:14]} 45. Qh8 {[%clk 0:00:04]}  Qc5+ {[%clk 0:00:11]} 46. Kh1 {[%clk 0:00:04]}  Rxb6 {[%clk 0:00:12]} 47. Qh7+ {[%clk 0:00:05]}  Kf6 {[%clk 0:00:12]} 48. Qh8+ {[%clk 0:00:05]}  Kf7 {[%clk 0:00:12]} 49. Ra1 {[%clk 0:00:05]}  Rb7 {[%clk 0:00:09]} 50. Qh7+ {[%clk 0:00:05]}  Ke6 {[%clk 0:00:09]} 51. Qxb7 {[%clk 0:00:05]}  Qf5 {[%clk 0:00:09]} 52. Qb3+ {[%clk 0:00:05]}  Ke7 {[%clk 0:00:08]} 53. Qe3 {[%clk 0:00:06]}  d5 {[%clk 0:00:07]} 54. Kg1 {[%clk 0:00:06]}  Qg4 {[%clk 0:00:07]} 55. Ra7+ {[%clk 0:00:06]}  Kf8 {[%clk 0:00:07]} 56. Qc5+ {[%clk 0:00:06]}  Kg8 {[%clk 0:00:07]} 57. Qxd5+ {[%clk 0:00:06]}  Kh8 {[%clk 0:00:06]} 58. Qd8# {[%clk 0:00:06]} 1-0


[Site "https://www.chess.com"]

[Event "Titled Tuesday Blitz May 2 Early 2023"]
[White "Antonio, Jorge Carlos"]
[Black "Saya, Ethan"]
[WhiteFideId "113190"]
[BlackFideId "26095181"]
[WhiteElo "2247"]
[BlackElo "2189"]
[Result "0-1"]
[Round "03"]
[TimeControl "180+2"]
[Date "2023.05.02"]
[WhiteClock "0:00:15"]
[BlackClock "0:00:16"]

1. d4 {[%clk 0:03:00]}  Nf6 {[%clk 0:02:53]} 2. c4 {[%clk 0:02:54]}  e6 {[%clk 0:02:54]} 3. Nf3 {[%clk 0:02:52]}  d5 {[%clk 0:02:52]} 4. e3 {[%clk 0:02:48]}  Be7 {[%clk 0:02:45]} 5. Nc3 {[%clk 0:02:47]}  O-O {[%clk 0:02:43]} 6. Ne5 {[%clk 0:02:47]}  Nbd7 {[%clk 0:02:41]} 7. f4 {[%clk 0:02:47]}  c5 {[%clk 0:02:38]} 8. Bd3 {[%clk 0:02:43]}  dxc4 {[%clk 0:02:38]} 9. Bxc4 {[%clk 0:02:40]}  Nb6 {[%clk 0:02:37]} 10. Bb3 {[%clk 0:02:38]}  cxd4 {[%clk 0:02:37]} 11. exd4 {[%clk 0:02:35]}  Nbd5 {[%clk 0:02:32]} 12. O-O {[%clk 0:02:32]}  b6 {[%clk 0:02:32]} 13. Nxd5 {[%clk 0:02:28]}  Nxd5 {[%clk 0:02:31]} 14. Qe2 {[%clk 0:02:24]}  Bb7 {[%clk 0:02:29]} 15. Be3 {[%clk 0:02:21]}  Nxe3 {[%clk 0:02:29]} 16. Qxe3 {[%clk 0:02:17]}  Rc8 {[%clk 0:02:23]} 17. f5 {[%clk 0:02:13]}  exf5 {[%clk 0:02:21]} 18. Rxf5 {[%clk 0:02:10]}  Bd5 {[%clk 0:02:11]} 19. Bxd5 {[%clk 0:02:06]}  Qxd5 {[%clk 0:02:11]} 20. Raf1 {[%clk 0:01:57]}  Qxa2 {[%clk 0:01:51]} 21. Nxf7 {[%clk 0:01:50]}  Bf6 {[%clk 0:01:44]} 22. Nd6 {[%clk 0:01:47]}  Rcd8 {[%clk 0:01:39]} 23. Ne4 {[%clk 0:01:43]}  Be7 {[%clk 0:01:28]} 24. Rxf8+ {[%clk 0:01:36]}  Rxf8 {[%clk 0:01:28]} 25. Rxf8+ {[%clk 0:01:32]}  Bxf8 {[%clk 0:01:28]} 26. b3 {[%clk 0:01:29]}  a5 {[%clk 0:01:21]} 27. Qd3 {[%clk 0:01:25]}  h6 {[%clk 0:01:08]} 28. d5 {[%clk 0:01:25]}  Qa1+ {[%clk 0:01:03]} 29. Kf2 {[%clk 0:01:22]}  Qb2+ {[%clk 0:01:02]} 30. Kf3 {[%clk 0:01:20]}  Qe5 {[%clk 0:00:55]} 31. d6 {[%clk 0:01:10]}  Qf5+ {[%clk 0:00:55]} 32. Ke3 {[%clk 0:01:07]}  Qd7 {[%clk 0:00:52]} 33. Qd5+ {[%clk 0:01:03]}  Kh8 {[%clk 0:00:52]} 34. h3 {[%clk 0:00:58]}  b5 {[%clk 0:00:52]} 35. Kd4 {[%clk 0:00:46]}  a4 {[%clk 0:00:50]} 36. Kc3 {[%clk 0:00:41]}  a3 {[%clk 0:00:45]} 37. Qa8 {[%clk 0:00:36]}  Kg8 {[%clk 0:00:38]} 38. Qxa3 {[%clk 0:00:35]}  Qc6+ {[%clk 0:00:20]} 39. Qc5 {[%clk 0:00:32]}  Qxe4 {[%clk 0:00:17]} 40. Qc8 {[%clk 0:00:23]}  Qe5+ {[%clk 0:00:16]} 41. Kb4 {[%clk 0:00:21]}  Qxd6+ {[%clk 0:00:16]} 42. Kxb5 {[%clk 0:00:22]}  Qb4+ {[%clk 0:00:17]} 43. Kc6 {[%clk 0:00:19]}  Qxb3 {[%clk 0:00:16]} 44. Qe6+ {[%clk 0:00:15]}  Qxe6+ {[%clk 0:00:16]} 0-1


[Site "https://www.chess.com"]

[Event "Titled Tuesday Blitz May 2 Early 2023"]
[White "Senft, Sean"]
[Black "Przybylski, Wojciech"]
[WhiteFideId "2044960"]
[BlackFideId "1117599"]
[WhiteElo "1989"]
[BlackElo "2222"]
[Result "0-1"]
[Round "03"]
[TimeControl "180+2"]
[Date "2023.05.02"]
[WhiteClock "0:00:06"]
[BlackClock "0:00:52"]

1. d4 {[%clk 0:03:00]}  Nf6 {[%clk 0:02:59]} 2. c4 {[%clk 0:03:00]}  e6 {[%clk 0:02:58]} 3. Nc3 {[%clk 0:03:01]}  Bb4 {[%clk 0:02:58]} 4. Nf3 {[%clk 0:03:02]}  O-O {[%clk 0:02:57]} 5. Bg5 {[%clk 0:03:02]}  h6 {[%clk 0:02:57]} 6. Bh4 {[%clk 0:03:02]}  g5 {[%clk 0:02:57]} 7. Nxg5 {[%clk 0:02:59]}  hxg5 {[%clk 0:02:57]} 8. Bxg5 {[%clk 0:02:59]}  Bxc3+ {[%clk 0:02:57]} 9. bxc3 {[%clk 0:02:59]}  d6 {[%clk 0:02:52]} 10. e3 {[%clk 0:02:57]}  Nbd7 {[%clk 0:02:48]} 11. Bd3 {[%clk 0:02:55]}  c6 {[%clk 0:02:38]} 12. h4 {[%clk 0:02:55]}  Qa5 {[%clk 0:02:36]} 13. Rc1 {[%clk 0:02:52]}  e5 {[%clk 0:02:31]} 14. Qf3 {[%clk 0:02:46]}  e4 {[%clk 0:02:27]} 15. Bxe4 {[%clk 0:02:45]}  Nxe4 {[%clk 0:02:24]} 16. Qxe4 {[%clk 0:02:46]}  d5 {[%clk 0:02:06]} 17. Qf4 {[%clk 0:02:36]}  dxc4 {[%clk 0:01:55]} 18. Bh6 {[%clk 0:02:28]}  Qh5 {[%clk 0:01:44]} 19. Rh3 {[%clk 0:02:13]}  Kh7 {[%clk 0:01:44]} 20. Bxf8 {[%clk 0:01:55]}  Nxf8 {[%clk 0:01:45]} 21. Rg3 {[%clk 0:01:34]}  Be6 {[%clk 0:01:41]} 22. Rg5 {[%clk 0:01:22]}  Qh6 {[%clk 0:01:40]} 23. g4 {[%clk 0:01:16]}  Ng6 {[%clk 0:01:39]} 24. Qf6 {[%clk 0:01:05]}  Qg7 {[%clk 0:01:31]} 25. Qxg7+ {[%clk 0:01:04]}  Kxg7 {[%clk 0:01:30]} 26. h5 {[%clk 0:01:05]}  Kh6 {[%clk 0:01:25]} 27. f4 {[%clk 0:01:04]}  Nh4 {[%clk 0:01:09]} 28. Kf2 {[%clk 0:01:02]}  f6 {[%clk 0:01:09]} 29. Ra5 {[%clk 0:00:38]}  Rg8 {[%clk 0:01:05]} 30. f5 {[%clk 0:00:24]}  Bd5 {[%clk 0:01:04]} 31. Rxa7 {[%clk 0:00:12]}  b5 {[%clk 0:00:58]} 32. Rg1 {[%clk 0:00:11]}  Nf3 {[%clk 0:00:56]} 33. Rg3 {[%clk 0:00:09]}  Ng5 {[%clk 0:00:53]} 34. Rg1 {[%clk 0:00:05]}  Nh3+ {[%clk 0:00:52]} 35. Kf1 {[%clk 0:00:04]}  Nxg1 {[%clk 0:00:53]} 36. Kxg1 {[%clk 0:00:05]}  Rxg4+ {[%clk 0:00:53]} 37. Kf2 {[%clk 0:00:06]}  Rg2+ {[%clk 0:00:52]} 38. Kf1 {[%clk 0:00:06]}  Kxh5 {[%clk 0:00:52]} 39. Ra8 {[%clk 0:00:06]} 0-1


[Site "https://www.chess.com"]

[Event "Titled Tuesday Blitz May 2 Early 2023"]
[White "Amitpal, Singh"]
[Black "Omariev, Maksim"]
[WhiteFideId "5012899"]
[BlackFideId "4193423"]
[WhiteElo "2107"]
[BlackElo "2304"]
[Result "0-1"]
[Round "03"]
[TimeControl "180+2"]
[Date "2023.05.02"]
[WhiteClock "0:00:22"]
[BlackClock "0:00:08"]

1. e4 {[%clk 0:02:59]}  h5 {[%clk 0:02:56]} 2. d4 {[%clk 0:02:57]}  h4 {[%clk 0:02:56]} 3. Nc3 {[%clk 0:02:54]}  d6 {[%clk 0:02:57]} 4. Bf4 {[%clk 0:02:51]}  h3 {[%clk 0:02:58]} 5. gxh3 {[%clk 0:02:49]}  Nc6 {[%clk 0:02:57]} 6. Qd2 {[%clk 0:02:48]}  Nxd4 {[%clk 0:02:56]} 7. Qxd4 {[%clk 0:02:46]}  e5 {[%clk 0:02:57]} 8. Bxe5 {[%clk 0:02:47]}  dxe5 {[%clk 0:02:58]} 9. Qxe5+ {[%clk 0:02:48]}  Be6 {[%clk 0:02:58]} 10. Rd1 {[%clk 0:02:45]}  Qe7 {[%clk 0:02:46]} 11. Nb5 {[%clk 0:02:24]}  Rc8 {[%clk 0:02:27]} 12. Nxa7 {[%clk 0:02:22]}  Rd8 {[%clk 0:02:27]} 13. Rxd8+ {[%clk 0:02:05]}  Kxd8 {[%clk 0:02:28]} 14. Nb5 {[%clk 0:01:55]}  Nf6 {[%clk 0:02:25]} 15. Nf3 {[%clk 0:01:49]}  Qb4+ {[%clk 0:01:50]} 16. Nd2 {[%clk 0:01:43]}  Qa5 {[%clk 0:00:56]} 17. a3 {[%clk 0:01:30]}  Rh5 {[%clk 0:00:40]} 18. Qd4+ {[%clk 0:01:26]}  Kc8 {[%clk 0:00:36]} 19. b4 {[%clk 0:01:25]}  Qa4 {[%clk 0:00:22]} 20. Bd3 {[%clk 0:01:16]}  Rxb5 {[%clk 0:00:18]} 21. e5 {[%clk 0:01:16]}  Rd5 {[%clk 0:00:09]} 22. Qe3 {[%clk 0:01:06]}  Nd7 {[%clk 0:00:09]} 23. f4 {[%clk 0:01:05]}  Qxa3 {[%clk 0:00:10]} 24. O-O {[%clk 0:00:54]}  Qxb4 {[%clk 0:00:10]} 25. Kg2 {[%clk 0:00:53]}  Bc5 {[%clk 0:00:10]} 26. Qe2 {[%clk 0:00:52]}  g6 {[%clk 0:00:08]} 27. Ne4 {[%clk 0:00:50]}  Bb6 {[%clk 0:00:07]} 28. c4 {[%clk 0:00:48]}  Rd4 {[%clk 0:00:06]} 29. Rb1 {[%clk 0:00:46]}  Qa3 {[%clk 0:00:05]} 30. Rd1 {[%clk 0:00:42]}  Nc5 {[%clk 0:00:04]} 31. Nf2 {[%clk 0:00:40]}  Nxd3 {[%clk 0:00:04]} 32. Rxd3 {[%clk 0:00:40]}  Qc5 {[%clk 0:00:03]} 33. Rxd4 {[%clk 0:00:38]}  Qxd4 {[%clk 0:00:04]} 34. Qe4 {[%clk 0:00:34]}  Bxc4 {[%clk 0:00:04]} 35. Qxd4 {[%clk 0:00:33]}  Bxd4 {[%clk 0:00:04]} 36. Ng4 {[%clk 0:00:31]}  Bd5+ {[%clk 0:00:05]} 37. Kf1 {[%clk 0:00:30]}  b5 {[%clk 0:00:05]} 38. Ke2 {[%clk 0:00:31]}  c5 {[%clk 0:00:05]} 39. Kd3 {[%clk 0:00:32]}  Kd7 {[%clk 0:00:05]} 40. Nf6+ {[%clk 0:00:31]}  Kc6 {[%clk 0:00:05]} 41. h4 {[%clk 0:00:27]}  Bc4+ {[%clk 0:00:06]} 42. Ke4 {[%clk 0:00:26]}  b4 {[%clk 0:00:07]} 43. f5 {[%clk 0:00:22]}  gxf5+ {[%clk 0:00:07]} 44. Kxf5 {[%clk 0:00:23]}  b3 {[%clk 0:00:07]} 45. h5 {[%clk 0:00:24]}  b2 {[%clk 0:00:08]} 46. h6 {[%clk 0:00:24]}  b1=Q+ {[%clk 0:00:09]} 47. Kf4 {[%clk 0:00:24]}  Qg6 {[%clk 0:00:09]} 48. h7 {[%clk 0:00:24]}  Qh6+ {[%clk 0:00:09]} 49. Ke4 {[%clk 0:00:22]}  Be6 {[%clk 0:00:08]} 0-1


[Site "https://www.chess.com"]

[Event "Titled Tuesday Blitz May 2 Early 2023"]
[White "Melikhov, Evgeny V."]
[Black "Larina, Maria"]
[WhiteFideId "4122046"]
[BlackFideId "24113182"]
[WhiteElo "2158"]
[BlackElo "1848"]
[Result "1-0"]
[Round "03"]
[TimeControl "180+2"]
[Date "2023.05.02"]
[WhiteClock "0:00:42"]
[BlackClock "0:00:02"]

1. d4 {[%clk 0:03:00]}  f5 {[%clk 0:02:59]} 2. e4 {[%clk 0:03:00]}  fxe4 {[%clk 0:02:59]} 3. Nc3 {[%clk 0:03:00]}  Nf6 {[%clk 0:02:59]} 4. Bg5 {[%clk 0:03:00]}  Nc6 {[%clk 0:03:00]} 5. d5 {[%clk 0:02:56]}  Ne5 {[%clk 0:03:00]} 6. Qe2 {[%clk 0:02:51]}  Nf7 {[%clk 0:02:35]} 7. Bxf6 {[%clk 0:02:36]}  exf6 {[%clk 0:02:36]} 8. Nxe4 {[%clk 0:02:35]}  Qe7 {[%clk 0:02:34]} 9. d6 {[%clk 0:02:23]}  Nxd6 {[%clk 0:02:27]} 10. Nxd6+ {[%clk 0:02:22]}  cxd6 {[%clk 0:02:28]} 11. O-O-O {[%clk 0:02:21]}  Qe5 {[%clk 0:01:53]} 12. Nf3 {[%clk 0:02:13]}  Qxe2 {[%clk 0:01:51]} 13. Bxe2 {[%clk 0:02:14]}  b6 {[%clk 0:01:28]} 14. Nd4 {[%clk 0:02:11]}  Bb7 {[%clk 0:01:19]} 15. Nb5 {[%clk 0:02:03]}  Kf7 {[%clk 0:01:12]} 16. Bc4+ {[%clk 0:01:57]}  Kg6 {[%clk 0:01:00]} 17. Nxd6 {[%clk 0:01:56]}  Bxd6 {[%clk 0:01:00]} 18. Rxd6 {[%clk 0:01:56]}  Bc6 {[%clk 0:00:55]} 19. Bd5 {[%clk 0:01:43]}  Rhe8 {[%clk 0:00:13]} 20. Rxc6 {[%clk 0:01:35]}  dxc6 {[%clk 0:00:14]} 21. Bxc6 {[%clk 0:01:35]}  Rac8 {[%clk 0:00:13]} 22. Bxe8+ {[%clk 0:01:34]}  Rxe8 {[%clk 0:00:14]} 23. Rf1 {[%clk 0:01:29]}  f5 {[%clk 0:00:12]} 24. c4 {[%clk 0:01:21]}  Re4 {[%clk 0:00:12]} 25. b3 {[%clk 0:01:16]}  h5 {[%clk 0:00:10]} 26. Kd2 {[%clk 0:01:15]}  h4 {[%clk 0:00:09]} 27. Re1 {[%clk 0:01:09]}  Rd4+ {[%clk 0:00:10]} 28. Kc3 {[%clk 0:01:10]}  Rd7 {[%clk 0:00:10]} 29. b4 {[%clk 0:01:06]}  Kg5 {[%clk 0:00:08]} 30. c5 {[%clk 0:01:06]}  bxc5 {[%clk 0:00:09]} 31. bxc5 {[%clk 0:01:06]}  Kf6 {[%clk 0:00:08]} 32. Kc4 {[%clk 0:01:06]}  g5 {[%clk 0:00:07]} 33. Re2 {[%clk 0:01:04]}  Rd1 {[%clk 0:00:06]} 34. c6 {[%clk 0:01:02]}  Rc1+ {[%clk 0:00:07]} 35. Kd5 {[%clk 0:01:02]}  Rd1+ {[%clk 0:00:07]} 36. Kc5 {[%clk 0:01:02]}  Rc1+ {[%clk 0:00:07]} 37. Kd6 {[%clk 0:01:02]}  Rd1+ {[%clk 0:00:07]} 38. Kc7 {[%clk 0:01:03]}  g4 {[%clk 0:00:05]} 39. Kc8 {[%clk 0:01:00]}  f4 {[%clk 0:00:04]} 40. c7 {[%clk 0:01:00]}  g3 {[%clk 0:00:05]} 41. fxg3 {[%clk 0:00:57]}  fxg3 {[%clk 0:00:04]} 42. hxg3 {[%clk 0:00:56]}  hxg3 {[%clk 0:00:04]} 43. Re3 {[%clk 0:00:49]}  Rc1 {[%clk 0:00:01]} 44. Rxg3 {[%clk 0:00:47]}  Ke7 {[%clk 0:00:02]} 45. Re3+ {[%clk 0:00:47]}  Kd6 {[%clk 0:00:01]} 46. Rd3+ {[%clk 0:00:47]}  Ke7 {[%clk 0:00:02]} 47. g4 {[%clk 0:00:42]} 1-0


[Site "https://www.chess.com"]

[Event "Titled Tuesday Blitz May 2 Early 2023"]
[White "Myers, Dominique"]
[Black "Delorme, Alban"]
[WhiteFideId "2041715"]
[BlackFideId "623636"]
[WhiteElo "1934"]
[BlackElo "2196"]
[Result "1-0"]
[Round "03"]
[TimeControl "180+2"]
[Date "2023.05.02"]
[WhiteClock "0:02:23"]
[BlackClock "0:00:37"]

1. d4 {[%clk 0:02:58]}  Nf6 {[%clk 0:03:00]} 2. Nd2 {[%clk 0:02:59]}  g6 {[%clk 0:02:57]} 3. Ngf3 {[%clk 0:02:59]}  Bg7 {[%clk 0:02:57]} 4. e4 {[%clk 0:02:59]}  d6 {[%clk 0:02:58]} 5. Bd3 {[%clk 0:03:00]}  O-O {[%clk 0:02:58]} 6. O-O {[%clk 0:03:00]}  c5 {[%clk 0:02:59]} 7. c3 {[%clk 0:03:00]}  Nc6 {[%clk 0:02:59]} 8. Re1 {[%clk 0:03:00]}  Bg4 {[%clk 0:02:59]} 9. Qa4 {[%clk 0:02:55]}  a6 {[%clk 0:02:51]} 10. h3 {[%clk 0:02:54]}  Bxf3 {[%clk 0:02:50]} 11. Nxf3 {[%clk 0:02:55]}  b5 {[%clk 0:02:50]} 12. Qd1 {[%clk 0:02:55]}  Nd7 {[%clk 0:02:48]} 13. Be3 {[%clk 0:02:55]}  Rb8 {[%clk 0:02:43]} 14. Rc1 {[%clk 0:02:54]}  Qa5 {[%clk 0:02:32]} 15. a3 {[%clk 0:02:54]}  Rfd8 {[%clk 0:02:31]} 16. Qd2 {[%clk 0:02:54]}  cxd4 {[%clk 0:02:29]} 17. b4 {[%clk 0:02:47]}  dxe3 {[%clk 0:02:26]} 18. Qxe3 {[%clk 0:02:46]}  Qc7 {[%clk 0:02:22]} 19. c4 {[%clk 0:02:45]}  bxc4 {[%clk 0:02:19]} 20. Bxc4 {[%clk 0:02:45]}  Qb6 {[%clk 0:02:10]} 21. Qb3 {[%clk 0:02:44]}  Nde5 {[%clk 0:02:09]} 22. Bd5 {[%clk 0:02:44]}  Rbc8 {[%clk 0:02:02]} 23. Ng5 {[%clk 0:02:42]}  h6 {[%clk 0:01:48]} 24. Nxf7 {[%clk 0:02:41]}  Nxf7 {[%clk 0:01:49]} 25. Bxf7+ {[%clk 0:02:42]}  Kh7 {[%clk 0:01:49]} 26. Qe6 {[%clk 0:02:41]}  Rf8 {[%clk 0:01:41]} 27. Bxg6+ {[%clk 0:02:33]}  Kh8 {[%clk 0:01:40]} 28. Bf5 {[%clk 0:02:34]}  Nd4 {[%clk 0:01:34]} 29. Qxc8 {[%clk 0:02:34]}  Nxf5 {[%clk 0:01:25]} 30. exf5 {[%clk 0:02:33]}  Rxc8 {[%clk 0:01:20]} 31. Rxc8+ {[%clk 0:02:33]}  Kh7 {[%clk 0:01:21]} 32. Rxe7 {[%clk 0:02:33]}  Qd4 {[%clk 0:01:14]} 33. Rcc7 {[%clk 0:02:26]}  d5 {[%clk 0:00:37]} 34. Rxg7+ {[%clk 0:02:23]}  Qxg7 {[%clk 0:00:38]} 35. Rxg7+ {[%clk 0:02:24]}  Kxg7 {[%clk 0:00:39]} 36. f4 {[%clk 0:02:23]}  Kf7 {[%clk 0:00:37]} 37. g4 {[%clk 0:02:23]} 1-0


[Site "https://www.chess.com"]

[Event "Titled Tuesday Blitz May 2 Early 2023"]
[White "Gabrielian, Artur"]
[Black "Zaichenko, Daria"]
[WhiteFideId "4131002"]
[BlackFideId "4197453"]
[WhiteElo "2432"]
[BlackElo "2039"]
[Result "1-0"]
[Round "03"]
[TimeControl "180+2"]
[Date "2023.05.02"]
[WhiteClock "0:00:15"]
[BlackClock "0:00:01"]

1. e4 {[%clk 0:03:00]}  c5 {[%clk 0:02:55]} 2. Nc3 {[%clk 0:02:59]}  Nc6 {[%clk 0:02:53]} 3. Bb5 {[%clk 0:02:58]}  Nd4 {[%clk 0:02:51]} 4. Nf3 {[%clk 0:02:56]}  g6 {[%clk 0:02:39]} 5. Nxd4 {[%clk 0:02:54]}  cxd4 {[%clk 0:02:39]} 6. Ne2 {[%clk 0:02:55]}  Bg7 {[%clk 0:02:36]} 7. O-O {[%clk 0:02:54]}  a6 {[%clk 0:02:35]} 8. Bc4 {[%clk 0:02:52]}  Qc7 {[%clk 0:02:17]} 9. d3 {[%clk 0:02:46]}  Nf6 {[%clk 0:02:08]} 10. Nxd4 {[%clk 0:02:40]}  O-O {[%clk 0:02:00]} 11. Bb3 {[%clk 0:02:33]}  d6 {[%clk 0:01:44]} 12. Nf3 {[%clk 0:02:29]}  e5 {[%clk 0:01:43]} 13. h3 {[%clk 0:02:27]}  h6 {[%clk 0:01:30]} 14. Be3 {[%clk 0:02:25]}  Nd7 {[%clk 0:01:22]} 15. Qd2 {[%clk 0:02:14]}  Kh7 {[%clk 0:01:21]} 16. d4 {[%clk 0:01:59]}  exd4 {[%clk 0:01:21]} 17. Nxd4 {[%clk 0:01:56]}  Nc5 {[%clk 0:01:19]} 18. f3 {[%clk 0:01:54]}  Nxb3 {[%clk 0:01:15]} 19. axb3 {[%clk 0:01:50]}  Be6 {[%clk 0:01:11]} 20. c4 {[%clk 0:01:49]}  Rad8 {[%clk 0:00:48]} 21. Rad1 {[%clk 0:01:48]}  Qe7 {[%clk 0:00:45]} 22. Rfe1 {[%clk 0:01:45]}  Qh4 {[%clk 0:00:30]} 23. Bf2 {[%clk 0:01:43]}  Qf6 {[%clk 0:00:29]} 24. f4 {[%clk 0:01:39]}  b5 {[%clk 0:00:19]} 25. Nc6 {[%clk 0:01:25]}  Rc8 {[%clk 0:00:18]} 26. Bd4 {[%clk 0:01:24]}  Qh4 {[%clk 0:00:16]} 27. Bxg7 {[%clk 0:01:22]}  Kxg7 {[%clk 0:00:16]} 28. Qxd6 {[%clk 0:01:18]}  bxc4 {[%clk 0:00:16]} 29. bxc4 {[%clk 0:01:17]}  Bxc4 {[%clk 0:00:16]} 30. Qd4+ {[%clk 0:01:16]}  Qf6 {[%clk 0:00:13]} 31. Ne5 {[%clk 0:01:12]}  Bb5 {[%clk 0:00:09]} 32. Nf3 {[%clk 0:01:09]}  Rcd8 {[%clk 0:00:06]} 33. Qxf6+ {[%clk 0:01:08]}  Kxf6 {[%clk 0:00:06]} 34. Kf2 {[%clk 0:01:06]}  Rc8 {[%clk 0:00:05]} 35. Rd2 {[%clk 0:01:03]}  Rfd8 {[%clk 0:00:04]} 36. Red1 {[%clk 0:01:02]}  Rxd2+ {[%clk 0:00:04]} 37. Rxd2 {[%clk 0:01:03]}  Rc4 {[%clk 0:00:04]} 38. Ke3 {[%clk 0:01:02]}  Ke7 {[%clk 0:00:04]} 39. g4 {[%clk 0:00:56]}  Rc1 {[%clk 0:00:04]} 40. h4 {[%clk 0:00:52]}  Rc4 {[%clk 0:00:02]} 41. g5 {[%clk 0:00:50]}  Bc6 {[%clk 0:00:02]} 42. Nd4 {[%clk 0:00:49]}  hxg5 {[%clk 0:00:01]} 43. hxg5 {[%clk 0:00:47]}  Bd7 {[%clk 0:00:02]} 44. Rd3 {[%clk 0:00:43]}  Rc1 {[%clk 0:00:02]} 45. Ra3 {[%clk 0:00:40]}  Re1+ {[%clk 0:00:02]} 46. Kf3 {[%clk 0:00:38]}  Rf1+ {[%clk 0:00:02]} 47. Kg3 {[%clk 0:00:37]}  Re1 {[%clk 0:00:03]} 48. e5 {[%clk 0:00:35]}  Re4 {[%clk 0:00:03]} 49. Rd3 {[%clk 0:00:21]}  Re1 {[%clk 0:00:02]} 50. Kf2 {[%clk 0:00:18]}  Rb1 {[%clk 0:00:02]} 51. Rd2 {[%clk 0:00:18]}  Ba4 {[%clk 0:00:01]} 52. Ke3 {[%clk 0:00:15]}  Re1+ {[%clk 0:00:01]} 53. Re2 {[%clk 0:00:15]} 1-0


[Site "https://www.chess.com"]